Cogmind - Beta 13 @@@ ROGUE MODE // 2024.04.06 @ 11:56:37 Player: JackieG Result: Self-destructed Performance ------------- Evolutions (3) 1500 Regions Visited (7) 1400 Robots Destroyed (42) 210 Value Destroyed (962) 962 Prototype IDs (3) 60 Alien Tech Used (0) 0 Bonus (319) 319 TOTAL SCORE: 4451 Bonus ------- High Alert Combat Kills 19 Aligned with FarCom 300 Cogmind --------- Core Integrity 575/700 Matter 5/300 Energy 68/100 System Corruption 1% Temperature Cool (9) Movement Flying (34) Location -7/Factory Parts ------- > --- POWER (1) -------- (None) > --- PROPULSION (4) --- Flight Unit Improved VTOL Module > --- UTILITY (6) ------ Advanced Weight Redist. System Improved Targeting Computer Improved Targeting Computer Hacking Suite > --- WEAPON (2) ------- (None) > --- INVENTORY (5) ---- Flight Unit Cloak of Protection PSU Rigger Minigun Flail Peak State ------------ > --- POWER ------------ (None) > --- PROPULSION ------- Flight Unit > --- UTILITY ---------- Improved Targeting Computer Improved Targeting Computer Cloak of Protection PSU Rigger > --- WEAPON ----------- Mini Grenade Launcher > --- INVENTORY -------- Minigun Mini Grenade Launcher Mini Grenade Launcher Flail [Rating: 23] Favorites ----------- Power Ion Engine Engine Ion Engine Power Core Light Nuclear Core Propulsion Light Treads Treads Light Treads Leg Aluminum Leg Hover Unit Hover Unit Flight Unit Flight Unit Utility Improved Targeting Computer Device PSU Rigger Storage Small Storage Unit Processor Improved Targeting Computer Hackware Hacking Suite Weapon Mini Grenade Launcher Energy Gun EM Pulse Gun Energy Cannon Beam Cannon Ballistic Gun Minigun Launcher Mini Grenade Launcher Impact Weapon Flail Build | -11 -10 -9 -9 -9 -8 -8 -7 ------- Run | Yrd Mat Mat Min Exi Min Mat Fac Slots Evolved 6 | . . 2 . . . 2 2 Power . | . . . . . . . . Propulsion 2 | . . 1 . . . . 1 Utility 4 | . . 1 . . . 2 1 Weapon . | . . . . . . . . Parts Attached 44 | 4 11 8 3 1 4 12 1 Power 4 | . 2 . 1 . 1 . . Engine 3 | . 2 . 1 . . . . Core 1 | . . . . . 1 . . Reactor . | . . . . . . . . Propulsion 11 | 2 2 3 . . 1 3 . Treads 2 | . . 2 . . . . . Leg 3 | 2 . 1 . . . . . Wheel . | . . . . . . . . Hover 2 | . 2 . . . . . . Flight 4 | . . . . . 1 3 . Utility 10 | . 3 2 . 1 . 3 1 Device 5 | . . 1 . 1 . 2 1 Storage 1 | . 1 . . . . . . Processor 3 | . 2 1 . . . . . Hackware 1 | . . . . . . 1 . Protection . | . . . . . . . . Artifact . | . . . . . . . . Weapon 19 | 2 4 3 2 . 2 6 . Energy Gun 3 | 2 1 . . . . . . Energy Cannon 1 | . 1 . . . . . . Ballistic Gun 1 | . . . . . . 1 . Ballistic Cannon . | . . . . . . . . Launcher 10 | . 1 2 1 . 1 5 . Special Weapon . | . . . . . . . . Impact Weapon 4 | . 1 1 1 . 1 . . Slashing Weapon . | . . . . . . . . Piercing Weapon . | . . . . . . . . Special Melee Weapon . | . . . . . . . . Unidentified Prototypes 3 | . . . . 1 . 2 . Corrupted Parts 3 | . . 2 . . 1 . . System Corruption 10 | . . 2 . . 8 . . Parts Lost 11 | . . 4 . . 4 2 1 Power 2 | . . 1 . . 1 . . Propulsion 6 | . . 2 . . 3 1 . Utility 1 | . . 1 . . . . . Weapon 2 | . . . . . . 1 1 Highest Loss Streak 3 | . . 3 . . 2 1 1 To Critical Strikes . | . . . . . . . . Average Slot Usage (%) 86 | . 79 71 100 100 92 47 49 Engine 7 | . 11 3 11 11 9 . . Treads 14 | . . 11 22 22 15 . . Leg 8 | . 9 . 11 11 10 . . Hover 1 | . 17 6 . . . . . Flight 2 | . . . . . . 18 15 Device 6 | . . 1 . 4 11 2 3 Processor 22 | . 7 25 33 28 22 18 15 Launcher 10 | . 3 11 12 11 11 5 7 Impact Weapon 8 | . 3 10 9 11 10 . . Naked Turns . | . . . . . . . . Heaviest Build 15 | 4 15 8 8 10 10 9 4 Greatest Support 40 | 20 20 40 40 40 40 9 9 Greatest Overweight (x) 3 | . 1 1 . . 3 . . Average Overweight (x) . | . . . . . . . . Largest Inventory Capacity 8 | 5 8 5 5 5 5 5 5 Average Capacity 5 | 5 6 5 5 5 5 5 5 Most Carried 6 | 5 6 5 4 5 5 5 5 Average Carried 4 | 3 4 4 4 4 4 4 5 Final Capacity 5 | 5 5 5 5 5 5 5 5 Final Carried 5 | 4 5 5 4 5 5 5 5 Class Distribution -------------------- 100% | Mutant Dominant Class ---------------- Mutant | -10/Materials Mutant | -9/Materials Mutant | -9/Mines Mutant | -9/Exiles Mutant | -8/Mines Mutant | -8/Materials Mutant | -7/Factory Resources | -11 -10 -9 -9 -9 -8 -8 -7 ----------- Run | Yrd Mat Mat Min Exi Min Mat Fac Matter Collected 822 | 231 79 225 . . 162 125 . Remotely . | . . . . . . . . Salvage Created 869 | . 61 383 . . 153 202 70 Parts 50 | . 5 17 . . 12 10 6 Haulers Intercepted 4 | . 1 2 . . . 1 . Recyclers Shooed 3 | . . . . . . 3 . Parts Field Recycled . | . . . . . . . . Retrieved Matter . | . . . . . . . . Parts Self-Destructed . | . . . . . . . . Prevented . | . . . . . . . . Kills | -11 -10 -9 -9 -9 -8 -8 -7 ------- Run | Yrd Mat Mat Min Exi Min Mat Fac Combat Hostiles Destroyed 30 | . . 13 . . 9 5 3 Melee 5 | . . 3 . . 2 . . Guns 1 | . . . . . . 1 . AOE 19 | . . 7 . . 5 4 3 Classes Destroyed 10 | . 2 4 . . 2 1 1 Worker 1 | . . . . . . . 1 Tunneler 3 | . . . . . 2 1 . Hauler 4 | . 1 2 . . . 1 . Recycler 2 | . . . . . . 2 . Watcher 2 | . 1 1 . . . . . Swarmer 13 | . . 4 . . 6 3 . Grunt 11 | . . 6 . . 2 . 3 Brawler 1 | . . . . . 1 . . Duelist 1 | . . 1 . . . . . Sentry 4 | . . 2 . . . 2 . Best Kill Streak 5 | . 1 5 . . 3 4 4 Combat Bots Only 4 | . . 4 . . 3 3 3 Max Kills in Single Turn 4 | . 1 2 . . 2 4 2 Gunslinging . | . . . . . . . . Exploded 3 | . . 2 . . 2 3 1 Melee 1 | . . 1 . . 1 . . Uniques/NPCs Destroyed . | . . . . . . . . Combat | -11 -10 -9 -9 -9 -8 -8 -7 -------- Run | Yrd Mat Mat Min Exi Min Mat Fac Hostile Shots Fired 160 | . . 56 . . 42 37 25 Missed 55 | . . 16 . . 8 20 11 Damage Taken 1459 | . . 532 . . 455 248 224 Core 526 | . . 149 . . 158 94 125 Absorbed by Shields 35 | . . 35 . . . . . Core Remaining (%) 76 | 100 100 . . . 23 82 . Volleys Fired 37 | . 3 8 . . 7 14 5 Largest 2 | . 2 2 . . 2 1 1 Hottest 110 | . 110 60 . . 60 33 33 Shots Fired 50 | . 6 11 . . 14 14 5 Gun 4 | . 3 . . . . 1 . Cannon 3 | . 3 . . . . . . Launcher 43 | . . 11 . . 14 13 5 Special . | . . . . . . . . Kinetic 1 | . . . . . . 1 . Thermal 4 | . 4 . . . . . . Explosive 43 | . . 11 . . 14 13 5 Electromagnetic 2 | . 2 . . . . . . Robot Hit Streak 12 | . 3 7 . . 12 10 4 Robot Miss Streak 2 | . 1 . . . 1 2 1 Penetration Max . | . . . . . . . . Secondary Targets . | . . . . . . . . Shots Hit Robots 60 | . 4 25 . . 16 11 4 Core Hits 54 | . 3 16 . . 10 16 9 Critical Kills 1 | . . . . . 1 . . Critical Parts Destroyed 2 | . . 2 . . . . . Critical Strikes 5 | . 1 3 . . 1 . . Burn 1 | . 1 . . . . . . Smash 4 | . . 3 . . 1 . . Melee Attacks 42 | . . 28 . . 14 . . Impact 42 | . . 28 . . 14 . . Slashing . | . . . . . . . . Piercing . | . . . . . . . . Sneak Attacks 2 | . . 2 . . . . . Combat Hostiles . | . . . . . . . . Follow-up Attacks . | . . . . . . . . Damage Inflicted 3431 | . 56 1349 . . 841 714 471 Guns 58 | . 39 . . . . 19 . Cannons 17 | . 17 . . . . . . Explosions 2356 | . . 618 . . 572 695 471 Melee 1000 | . . 731 . . 269 . . Ramming . | . . . . . . . . Kinetic 19 | . . . . . . 19 . Thermal 30 | . 30 . . . . . . Explosive 2356 | . . 618 . . 572 695 471 Electromagnetic 26 | . 26 . . . . . . Impact 1000 | . . 731 . . 269 . . Slashing . | . . . . . . . . Piercing . | . . . . . . . . Highest Corruption 10 | . . 2 2 2 10 . 1 Average Corruption 2 | . . 1 2 2 2 . 1 Corruption Purged . | . . . . . . . . Corruption Blocked . | . . . . . . . . Effects 39 | . . 2 4 7 24 . 2 Message Errors 10 | . . 1 2 1 5 . 1 Matter Fused 10 | . . 1 2 1 6 . . Heat Flow Errors 3 | . . . . 2 1 . . Energy Discharges 4 | . . . . . 3 . 1 Data Loss (minor) 6 | . . . . 3 3 . . Data Loss (major) 2 | . . . . . 2 . . Misfires 2 | . . . . . 2 . . Alerts 1 | . . . . . 1 . . Weapon Failures 1 | . . . . . 1 . . Overload Shots . | . . . . . . . . Overflow Damage 294 | . . 214 . . 61 . 19 Projectiles . | . . . . . . . . Explosions 53 | . . 26 . . 8 . 19 Melee 241 | . . 188 . . 53 . . Knockbacks 4 | . . 3 . . 1 . . Impact 3 | . . 2 . . 1 . . Kinetic . | . . . . . . . . Secondary 1 | . . 1 . . . . . Self-Inflicted Damage 210 | . . 47 . . 122 41 . Shots 9 | . . 2 . . 6 1 . Rammed . | . . . . . . . . Targets Rammed . | . . . . . . . . Kicked . | . . . . . . . . Crushed . | . . . . . . . . Highest Temperature 249 | . 62 1 . 131 249 2 2 Average Temperature 58 | . 31 1 . 75 74 2 2 Received Heat Transfer 529 | . . 304 . . 63 36 126 Siege Activations . | . . . . . . . . Robots Corrupted . | . . . . . . . . Combat Hostiles . | . . . . . . . . Parts Fried 7 | . . 4 . . 3 . . Impact Corruptions 12 | . . 7 . . 5 . . Robots Melted . | . . . . . . . . Combat Hostiles . | . . . . . . . . Parts Melted 1 | . 1 . . . . . . Heat Transferred 148 | . 148 . . . . . . Parts Sabotaged . | . . . . . . . . Parts Stolen . | . . . . . . . . Parts Stripped . | . . . . . . . . Power Chain Reactions . | . . . . . . . . Alert | -11 -10 -9 -9 -9 -8 -8 -7 ------- Run | Yrd Mat Mat Min Exi Min Mat Fac Peak Influence 461 | . 14 461 179 . 160 383 359 Initial 179 | . . 5 179 . . 62 173 Average 94 | . 8 238 179 . 36 199 210 Maximum Alert Level 2 | . . 2 . . . 1 1 Low Security (%) 84 | 100 100 40 100 . 100 34 59 Level 1 14 | . . 48 . . . 65 40 Level 2 1 | . . 10 . . . . . Level 3 . | . . . . . . . . Level 4 . | . . . . . . . . Level 5 . | . . . . . . . . High Security . | . . . . . . . . Max Security . | . . . . . . . . Squads Dispatched 2 | . . 1 . . . 1 . Investigation . | . . . . . . . . Extermination . | . . . . . . . . Reinforcement 2 | . . 1 . . . 1 . Assault . | . . . . . . . . Garrison . | . . . . . . . . Intercept . | . . . . . . . . Searches Triggered . | . . . . . . . . Construction Impeded . | . . . . . . . . Haulers Reinforced . | . . . . . . . . Active Scanning Responses . | . . . . . . . . Cargo Convoy Interrupts . | . . . . . . . . Stealth | -11 -10 -9 -9 -9 -8 -8 -7 --------- Run | Yrd Mat Mat Min Exi Min Mat Fac Distress Signals 2 | . . 1 . . . 1 . Communications Jammed . | . . . . . . . . Distress Signals . | . . . . . . . . Times Spotted 50 | . 1 19 . . 10 11 9 Peak Tracking Total 8 | . 2 5 . . 3 8 5 Tactical Retreats 3 | . . . . . 1 1 1 Traps | -11 -10 -9 -9 -9 -8 -8 -7 ------- Run | Yrd Mat Mat Min Exi Min Mat Fac Traps Triggered 1 | . . . . . . . 1 Indirectly . | . . . . . . . . Trap Hack Attempts . | . . . . . . . . Triggered . | . . . . . . . . Disarmed . | . . . . . . . . Reprogrammed . | . . . . . . . . Reused . | . . . . . . . . Traps Extracted . | . . . . . . . . Installed . | . . . . . . . . Triggered . | . . . . . . . . Machines | -11 -10 -9 -9 -9 -8 -8 -7 ---------- Run | Yrd Mat Mat Min Exi Min Mat Fac Machines Disabled 4 | . . 1 . . 1 2 . Max in Single Turn 1 | . . 1 . . 1 1 . Machines Repaired . | . . . . . . . . Machines Dismantled . | . . . . . . . . Machines Sabotaged . | . . . . . . . . Overloaded Fab Kills . | . . . . . . . . Hacking | -11 -10 -9 -9 -9 -8 -8 -7 --------- Run | Yrd Mat Mat Min Exi Min Mat Fac Machines Accessed 3 | . . . . . . 1 2 Terminals 2 | . . . . . . 1 1 Fabricators 1 | . . . . . . . 1 Repair Stations . | . . . . . . . . Recycling Units . | . . . . . . . . Scanalyzers . | . . . . . . . . Garrison Access . | . . . . . . . . Total Hacks 10 | . . . . . . 4 6 Successful 2 | . . . . . . . 2 Failed 8 | . . . . . . 4 4 Catastrophic . | . . . . . . . . Database Lockouts . | . . . . . . . . Manual 7 | . . . . 1 . 4 2 Terminals 8 | . . . . . . 4 4 Fabricators 2 | . . . . . . . 2 Repair Stations . | . . . . . . . . Recycling Units . | . . . . . . . . Scanalyzers . | . . . . . . . . Garrison Access . | . . . . . . . . Terminal Hacks 2 | . . . . . . . 2 Record 2 | . . . . . . . 2 Fabricator Hacks . | . . . . . . . . Repair Station Hacks . | . . . . . . . . Recycling Unit Hacks . | . . . . . . . . Scanalyzer . | . . . . . . . . Garrison Access Hacks . | . . . . . . . . Unauthorized Hacks . | . . . . . . . . Terminals . | . . . . . . . . Fabricators . | . . . . . . . . Repair Stations . | . . . . . . . . Recycling Units . | . . . . . . . . Scanalyzers . | . . . . . . . . Garrison Access . | . . . . . . . . Data Cores Recovered . | . . . . . . . . Used . | . . . . . . . . Hacking Detections 3 | . . . . . . 1 2 Full Trace Events . | . . . . . . . . Feedback Events . | . . . . . . . . Feedback Blocked . | . . . . . . . . Robot Schematics Acquired . | . . . . . . . . Robots Built . | . . . . . . . . Authchips . | . . . . . . . . Time . | . . . . . . . . Total Robot Build Rating . | . . . . . . . . Part Schematics Acquired . | . . . . . . . . Parts Built . | . . . . . . . . Authchips . | . . . . . . . . Time . | . . . . . . . . Total Part Build Rating . | . . . . . . . . Parts Repaired . | . . . . . . . . Time . | . . . . . . . . Parts Recycled . | . . . . . . . . Recycled Matter . | . . . . . . . . Retrieved Matter . | . . . . . . . . Retrieved Components . | . . . . . . . . Parts Scanalyzed . | . . . . . . . . Part Schematics Acquired . | . . . . . . . . Parts Damaged . | . . . . . . . . Bothacking | -11 -10 -9 -9 -9 -8 -8 -7 ------------ Run | Yrd Mat Mat Min Exi Min Mat Fac Used RIF Installer . | . . . . . . . . Robots Hacked . | . . . . . . . . Non-combat . | . . . . . . . . Combat . | . . . . . . . . Robot Hacks Applied . | . . . . . . . . Relay Couplers Released . | . . . . . . . . Fabnet Peak Effective % . | . . . . . . . . Robots Rewired . | . . . . . . . . Allies Hacked . | . . . . . . . . Hacks Repelled . | . . . . . . . . Allies | -11 -10 -9 -9 -9 -8 -8 -7 -------- Run | Yrd Mat Mat Min Exi Min Mat Fac Total Allies . | . . . . . . . . Largest Group . | . . . . . . . . Highest-Rated Group . | . . . . . . . . Highest-Rated Ally . | . . . . . . . . Total Orders . | . . . . . . . . Ally Attacks . | . . . . . . . . Total Damage . | . . . . . . . . Kills . | . . . . . . . . Allies Corrupted . | . . . . . . . . Allies Melted . | . . . . . . . . Intel | -11 -10 -9 -9 -9 -8 -8 -7 ------- Run | Yrd Mat Mat Min Exi Min Mat Fac Robot Analysis Total . | . . . . . . . . Derelict Logs Recovered . | . . . . . . . . Drone Launches . | . . . . . . . . Drone Recoveries . | . . . . . . . . Exploration | -11 -10 -9 -9 -9 -8 -8 -7 ------------- Run | Yrd Mat Mat Min Exi Min Mat Fac Turns Passed 3019 | 71 123 303 222 470 1469 250 111 Spaces Moved 2410 | 59 118 196 132 292 935 418 260 Core 28 | 14 . 5 . . 9 . . Treads 1172 | . . 71 132 292 677 . . Legs 261 | 45 25 . . . 191 . . Wheels . | . . . . . . . . Hover 213 | . 93 120 . . . . . Flight 736 | . . . . . 58 418 260 Fastest Speed 34 | 50 56 50 160 160 40 34 34 Average Speed 107 | 103 70 96 160 160 144 35 34 Slowest Speed 200 | 120 120 160 160 160 200 40 34 Overloaded Moves . | . . . . . . . . Propulsion Burnouts . | . . . . . . . . Robots Hopped 8 | . . . . . . 6 2 Cave-ins Triggered . | . . . . . . . . Exploration Rate (%) 33 | 4 22 27 17 60 100 31 7 Regions Visited 7 Branch Regions 3 Pre-discovered Areas 1 | . . . 1 . . . . Known Exits Taken . | . . . . . . . . Unknown Exits Taken 7 | 1 1 1 1 1 1 1 . Scrap Searched 2 | . . . . . 2 . . Spaces Dug . | . . . . . . . . Terrain Destroyed 287 | . . 76 . . 116 73 22 Melee . | . . . . . . . . Projectile . | . . . . . . . . AOE 287 | . . 76 . . 116 73 22 Terrain Rammed . | . . . . . . . . Walls Destroyed . | . . . . . . . . Machines Disabled . | . . . . . . . . Actions | -11 -10 -9 -9 -9 -8 -8 -7 --------- Run | Yrd Mat Mat Min Exi Min Mat Fac Total 2701 | 68 151 255 142 294 1019 497 275 Wait 137 | . 5 10 8 . 54 49 11 Move 2387 | 58 117 195 131 291 934 405 256 Hop 8 | . . . . . . 6 2 Pick Up 22 | 6 7 3 . 2 2 2 . Fast Attach 20 | 2 5 5 . . 2 5 1 Attach 9 | 2 2 . 1 . . 4 . Detach 5 | . . . . . . 5 . Swap 15 | . 4 3 2 1 2 3 . Drop 19 | . 8 3 . . 4 4 . Fire 37 | . 3 8 . . 7 14 5 Melee 42 | . . 28 . . 14 . . Ram . | . . . . . . . . Kick . | . . . . . . . . Crush . | . . . . . . . . Escape Stasis . | . . . . . . . . Rewire . | . . . . . . . . Trap . | . . . . . . . . Miscellaneous . | . . . . . . . . Route ------- -11/Scrapyard -10/Materials -9/Materials -9/Mines -9/Exiles -8/Mines (discovered 2 exits: *Mat x2) -8/Materials -7/Factory History --------- Turn | Location | Event 8 | -11/Scrapyard | Discovered new exit (range 15) 72 | -11/Scrapyard | Entered Materials 186 | -10/Materials | Discovered new exit (range 16) 195 | -10/Materials | Entered another Materials area 195 | -9/Materials | Evolved 2 slots: Propulsion x1, Utility x1 316 | -9/Materials | Build established: Mutant 357 | -9/Materials | Lost 3 parts (1p1n1u) 443 | -9/Materials | Discovered new exit (range 12) 498 | -9/Materials | Entered Mines 499 | -9/Mines | Learned location of Storage (-7) 553 | -9/Mines | Met a Derelict bent on vengeance 709 | -9/Mines | Deemed a non-threat by the Exiles lab entrance 710 | -9/Mines | Discovered new exit (range 5) 720 | -9/Mines | Entered Exiles 773 | -9/Exiles | Met 8R-AWN 812 | -9/Exiles | Met EX-HEX 885 | -9/Exiles | Met EX-BIN 919 | -9/Exiles | Aligned with FarCom system 920 | -9/Exiles | Given EX-Vault access code 975 | -9/Exiles | Opened EX-Vault 980 | -9/Exiles | Found Prototype Device 981 | -9/Exiles | Identified PSU Rigger 989 | -9/Exiles | Found Prototype Device 1025 | -9/Exiles | Warned to stay clear of 0b10 Research branches 1079 | -9/Exiles | Met EX-DEC 1161 | -9/Exiles | Discovered new exit (range 12) 1190 | -9/Exiles | Stole two prototypes: PSU Rigger, Cloak of Protection 1190 | -9/Exiles | Entered Mines 2390 | -8/Mines | Core integrity fell below 50% 2635 | -8/Mines | System corruption reached 10% 2646 | -8/Mines | Discovered new exit (range 8) 2650 | -8/Mines | Discovered new exit (range 14) 2659 | -8/Mines | Entered Materials 2659 | -8/Materials | Evolved 2 slots: Utility x2 2659 | -8/Materials | Identified Cloak of Protection 2880 | -8/Materials | Discovered new exit (range 16) 2909 | -8/Materials | Entered Factory 2909 | -7/Factory | Evolved 2 slots: Propulsion x1, Utility x1 2911 | -7/Factory | FarCom data flow suspended 3020 | -7/Factory | Self-destructed Last Messages --------------- interstellar space travel a possibility for the first time in [Human] history. >>Query(Propulsion Arrays) A number of hover and flight unit designs have been linked into combined modules balanced for greater mass support than when used individually. Pre-balanced arrays also save on robot assembly time. Triggered Shock Trap. The floor emits a surge of raw power. System corrupted (+1). Acquired Adv. Weight Redist. System. &OHKCV6 LJ/PH#XSVB&/IO8>E G-50 Soldier destroyed. Destroyed Lgt. Nuclear Core. G-47 Trooper destroyed. System corrupted: Energy discharge (-40). G-47 Trooper destroyed. Rocket Launcher destroyed. Map ----- +----------------------------------------------------+ | ????????????????????# " " " #???????????????? | | ????????????????????# " " " #???????????????? | | ????????????????????# " " " #???????????????? | | ????????????????????# " " " #???????????????? | | ????????????????????# " " " " " #???????????????? | | ????????????????????# " " " "R" #???????????????? | | ????????????????????# """ #???????????????? | | ????????????????????#####+#/##################???? | | ????????????????????????# + ! #???? | | ????????????????????????# # #???? | | ????????????????????????# # """ """ #???? | | ????????????????????????# + """"" """"" #???? | | ????????????????????????# # """"" """"" #???? | | ?????????????????######## = # #???? | | ?????????????????# #[%! ################???? | | ######???????????# % g #??##############?? | | #???????????# #??# #?? | | #???????????# ! #??# """ #?? | | #???????????# %% ##?# "Y """ #?? | | #???#######?# #?# """ """ #?? | | #?? # #??# """ #?? | | """ #?# # #??# #?? | | """ #?# # # #???# #?? | | """ #?# # # ##### """" """" #?? | | """ #?# # # + """" """" #?? | | """ #?# ?# /@ ##### """" """" #?? | | """ #?? ??# # w ##### """" """" #?? | | #???? ???# # #T"## #?? | | ############+############ k # "########+######## | | | | | | | | | | | | ###+#####################+############# T####### | | # #?????# #?????####?????? | | # """ #?????# #??????????????? | | # """ #?????# """"""" #??????????????? | | # [ " #?????# """"""" #??????????????? | | # "F" #?????# """"""" #??????????????? | | # """ #?????# """"""" #??????????????? | | # #?????# #??????????????? | | # """ #?????#????"""???? #??????????????? | | # """"" #?????????????????????????????????? | | # """"" #?????????????????????????????????? | | # #?????????????????????????????????? | | # #?????????????????????????????????? | | ##############?????????????????????????????????? | | #??????????????????????????????????????????????? | | #??????????????????????????????????????????????? | +----------------------------------------------------+ Best States ------------- Heat Dissipation 34 Energy Generation 14 Energy Capacity 250 Matter Stores 300 Matter Capacity 300 Sight Range 16 Terrain Scan Density 10 Cloak Strength 5 Additional Mass Support 9 Evasion (%) 63 Targeting Accuracy 17 Recoil Reduction 2 Offensive Hacking 10 Item Schematics ----------------- None Robot Schematics ------------------ None Fabricated ------------ Nothing Alien Tech Used ----------------- None Achievements -------------- None Challenges ------------ None Game ------ Seed DroneMakeshiftClaws Manual? 0 Play Time 00:36:06 Cumulative 14.1 hours Start 2024.04.05 @ 15:10:53 End 2024.04.06 @ 11:56:37 Sessions 6 Manual Loads 0 Difficulty Rogue Special Mode None Game No. 15 Rogue 12 Adventurer 3 Explorer 0 Win Type - Total 0 Types 0/0/0/0/0/0/0/0/0 Lore% 19 Gallery% 20 Achievement% 18 Wizard Run 0 Options --------- Layout 1 ASCII 0 Keyboard 0 Movement Arrows Keybinds 0 Fullscreen 1 Font 24/Smallcaps Map View 50x35 Zoom Use 0% Tactical HUD 0 Map Filters NONE Filters NONE Steam 1 RUN: 588425f6-4dbd-453a-8056-152a839937ff